Cogmind - Beta 15 @@@ ROGUE MODE // 2025.10.20 @ 06:08:32 Player: Lazz Result: Destroyed by RV-TI8(E) with Overtuned Barrage Gun Performance ------------- Evolutions (0) 0 Regions Visited (3) 600 Robots Destroyed (7) 35 Value Destroyed (124) 124 Prototype IDs (0) 0 Alien Tech Used (0) 0 Bonus (300) 300 TOTAL SCORE: 1059 Bonus ------- Registered with UFD 300 Cogmind --------- Core Integrity 0/250 Matter 300/300 Energy 100/100 System Corruption 0% Temperature Cool (0) Movement Core (200) Ox3 Location -9/Scraptown Parts ------- > --- POWER (1) -------- (None) > --- PROPULSION (2) --- (None) > --- UTILITY (2) ------ Medium Storage Unit > --- WEAPON (2) ------- (None) > --- INVENTORY (10) --- Ion Engine Light Ion Engine Aluminum Leg VSS Leg Scrap Suit Power Amplifier Large Storage Unit Advanced Assault Cannon CPS Tube (2) Peak State ------------ > --- POWER ------------ Ion Engine > --- PROPULSION ------- Aluminum Leg Aluminum Leg > --- UTILITY ---------- Improved Cryofiber Web Medium Storage Unit > --- WEAPON ----------- Overtuned Coil Gun Overtuned Coil Gun > --- INVENTORY -------- Ion Engine Light Ion Engine Aluminum Leg Aluminum Leg Scrap Suit Power Amplifier Large Storage Unit Advanced Assault Cannon CPS Tube [Rating: 23] Favorites ----------- Power Ion Engine Engine Ion Engine Propulsion Aluminum Leg Leg Aluminum Leg Utility Medium Storage Unit Device Improved Cryofiber Web Storage Medium Storage Unit Weapon Assault Rifle Ballistic Gun Assault Rifle Build | -11 -10 -10 -9 ------- Run | Yrd Mat Sub Scr Slots Evolved . | . . . . Power . | . . . . Propulsion . | . . . . Utility . | . . . . Weapon . | . . . . Parts Attached 12 | 7 2 . 3 Power 1 | 1 . . . Engine 1 | 1 . . . Core . | . . . . Reactor . | . . . . Propulsion 2 | 2 . . . Treads . | . . . . Leg 2 | 2 . . . Wheel . | . . . . Hover . | . . . . Flight . | . . . . Utility 4 | 1 2 . 1 Device 1 | . . . 1 Storage 3 | 1 2 . . Processor . | . . . . Hackware . | . . . . Protection . | . . . . Artifact . | . . . . Weapon 5 | 3 . . 2 Energy Gun . | . . . . Energy Cannon . | . . . . Ballistic Gun 5 | 3 . . 2 Ballistic Cannon . | . . . . Launcher . | . . . . Special Weapon . | . . . . Impact Weapon . | . . . . Slashing Weapon . | . . . . Piercing Weapon . | . . . . Special Melee Weapon . | . . . . Unidentified Prototypes . | . . . . Parts Lost 6 | . . . 6 Power 1 | . . . 1 Propulsion 2 | . . . 2 Utility 1 | . . . 1 Weapon 2 | . . . 2 Highest Loss Streak 6 | . . . 6 To Critical Strikes . | . . . . Average Backups 8 | 3 7 8 8 Power 1 | . 1 2 2 Propulsion 3 | 1 4 4 2 Utility 1 | . . 1 1 Weapon 1 | 1 1 1 1 Tool/Special . | . . . . Unused Backups 12 | . 2 . 10 Power 3 | . 1 . 2 Propulsion 5 | . 1 . 4 Utility 2 | . . . 2 Weapon 1 | . . . 1 Tool/Special 1 | . . . 1 Average Slot Usage (%) 96 | . 89 100 99 Engine 13 | . 14 14 13 Leg 27 | . 28 28 27 Device 7 | . . . 11 Storage 17 | . 17 28 16 Ballistic Gun 27 | . 28 28 27 Peak Build Rating 23 | 6 7 7 23 Average Rating 11 | 3 6 7 15 On Entrance 5 | . 6 7 7 Naked Turns . | . . . . Heaviest Build 34 | 14 34 24 26 Greatest Support 20 | 20 20 20 20 Greatest Overweight (x) 3 | 1 1 1 3 Average Overweight (x) . | . . 1 . Largest Inventory Capacity 15 | 8 15 10 10 Average Capacity 9 | 7 8 10 10 Most Carried 10 | 8 8 8 10 Average Carried 8 | 3 7 8 9 Final Capacity 10 | 8 10 10 10 Final Carried 10 | 4 8 8 10 Class Distribution -------------------- 100% | Mutant Dominant Class ---------------- Mutant | -10/Materials Mutant | -10/Subcaves Mutant | -9/Scraptown Resources | -11 -10 -10 -9 ----------- Run | Yrd Mat Sub Scr Matter Collected 424 | 188 190 . 46 Remotely . | . . . . Salvage Created 178 | . 131 . 47 Parts 13 | . 10 . 3 Haulers Intercepted . | . . . . Recyclers Shooed . | . . . . Parts Field Recycled . | . . . . Retrieved Matter . | . . . . Parts Self-Destructed 1 | . . 1 . Prevented . | . . . . Kills | -11 -10 -10 -9 ------- Run | Yrd Mat Sub Scr Combat Hostiles Destroyed 7 | . 6 . 1 Guns 7 | . 6 . 1 Classes Destroyed 3 | . 2 . 1 Swarmer 5 | . 5 . . Grunt 1 | . 1 . . Explorer 1 | . . . 1 Best Kill Streak 3 | . 3 . 1 Combat Bots Only 3 | . 3 . 1 Max Kills in Single Turn 1 | . 1 . 1 Gunslinging . | . . . . Exploded . | . . . . Melee . | . . . . Uniques/NPCs Destroyed . | . . . . Combat | -11 -10 -10 -9 -------- Run | Yrd Mat Sub Scr Hostile Shots Fired 117 | . 52 . 65 Missed 33 | . 16 . 17 Hits 84 | . 36 . 48 Melee 4 | . . . 4 Projectile 80 | . 36 . 44 Critical Strikes 3 | . . . 3 Damage Taken 1024 | . 309 . 715 Core 255 | . 28 . 227 Absorbed by Shields . | . . . . Core Remaining (%) 100 | 100 . . . Volleys Fired 15 | . 13 . 2 Largest 2 | . 2 . 2 Hottest 64 | . 40 . 64 Shots Fired 30 | . 26 . 4 Gun 30 | . 26 . 4 Cannon . | . . . . Launcher . | . . . . Special . | . . . . Kinetic 30 | . 26 . 4 Thermal . | . . . . Explosive . | . . . . Electromagnetic . | . . . . Robot Hit Streak 9 | . 7 . 9 Robot Miss Streak 2 | . 2 . . Penetration Max . | . . . . Secondary Targets 4 | . 3 . 1 Max Gunslinging Chain 1 | . 1 . 1 Shots Hit Robots 18 | . 16 . 2 Core Hits 8 | . 7 . 1 Critical Kills . | . . . . Critical Parts Destroyed . | . . . . Critical Strikes . | . . . . Melee Attacks . | . . . . Impact . | . . . . Slashing . | . . . . Piercing . | . . . . Sneak Attacks . | . . . . Combat Hostiles . | . . . . Follow-up Attacks . | . . . . Damage Inflicted 284 | . 229 . 55 Guns 284 | . 229 . 55 Cannons . | . . . . Explosions . | . . . . Melee . | . . . . Ramming . | . . . . Kinetic 284 | . 229 . 55 Thermal . | . . . . Explosive . | . . . . Electromagnetic . | . . . . Impact . | . . . . Slashing . | . . . . Piercing . | . . . . Highest Corruption . | . . . . Average Corruption . | . . . . Corruption Purged . | . . . . Corruption Blocked . | . . . . Overload Shots . | . . . . Overflow Damage . | . . . . Projectiles . | . . . . Explosions . | . . . . Melee . | . . . . Knockbacks . | . . . . Impact . | . . . . Kinetic . | . . . . Secondary . | . . . . Self-Inflicted Damage . | . . . . Shots . | . . . . Rammed . | . . . . Targets Rammed . | . . . . Kicked . | . . . . Crushed . | . . . . Highest Temperature 5 | . 5 . . Average Temperature 5 | . 5 . . Received Heat Transfer 115 | . 30 . 85 Siege Activations . | . . . . Martial Activations . | . . . . Shielding Activations . | . . . . Robots Disrupted . | . . . . Combat Hostiles . | . . . . Robots Corrupted . | . . . . Combat Hostiles . | . . . . Parts Fried . | . . . . Impact Corruptions . | . . . . Robots Melted . | . . . . Combat Hostiles . | . . . . Parts Melted 1 | . 1 . . Heat Transferred . | . . . . Parts Sabotaged . | . . . . Parts Stolen . | . . . . Parts Stripped . | . . . . Power Chain Reactions . | . . . . Alert | -11 -10 -10 -9 ------- Run | Yrd Mat Sub Scr Maximum Alert Level . | . . . . Low Security (%) 100 | 100 100 . . Level 1 . | . . . . Level 2 . | . . . . Level 3 . | . . . . Level 4 . | . . . . Level 5 . | . . . . High Security . | . . . . Max Security . | . . . . Peak Influence 70 | . 70 . . Initial . | . . . . Average 8 | . 9 . . Influence Increases 130 | . 130 . . Destroy 0b10 Robot/C 120 | . 120 . . Destroy Leader 10 | . 10 . . Influence Decreases 130 | . 92 38 . Entered New Map 19 | . . 19 . Time Decay 111 | . 92 19 . Squads Dispatched 2 | . 2 . . Investigation 1 | . 1 . . Extermination . | . . . . Reinforcement 1 | . 1 . . Assault . | . . . . Garrison . | . . . . Intercept . | . . . . Searches Triggered . | . . . . Construction Impeded . | . . . . Haulers Reinforced . | . . . . Active Scanning Responses . | . . . . Cargo Convoy Interrupts . | . . . . Stealth | -11 -10 -10 -9 --------- Run | Yrd Mat Sub Scr Distress Signals . | . . . . Communications Jammed . | . . . . Distress Signals . | . . . . Times Spotted 25 | . 14 . 11 Peak Tracking Total 14 | . 4 . 14 Tactical Retreats . | . . . . Traps | -11 -10 -10 -9 ------- Run | Yrd Mat Sub Scr Traps Triggered 1 | . 1 . . Indirectly . | . . . . Trap Hack Attempts . | . . . . Triggered . | . . . . Disarmed . | . . . . Reprogrammed . | . . . . Reused . | . . . . Traps Extracted . | . . . . Installed . | . . . . Triggered . | . . . . Machines | -11 -10 -10 -9 ---------- Run | Yrd Mat Sub Scr Machines Disabled 1 | . . . 1 Max in Single Turn 1 | . . . 1 Machines Repaired . | . . . . Machines Dismantled . | . . . . Machines Sabotaged . | . . . . Overloaded Fab Kills . | . . . . Hacking | -11 -10 -10 -9 --------- Run | Yrd Mat Sub Scr Machines Accessed 2 | . . . 2 Terminals . | . . . . Fabricators . | . . . . Repair Stations . | . . . . Recycling Units . | . . . . Scanalyzers . | . . . . Garrison Access . | . . . . Total Hacks 13 | . . . 13 Successful 13 | . . . 13 Failed . | . . . . Catastrophic . | . . . . Database Lockouts . | . . . . Manual . | . . . . Terminals . | . . . . Fabricators . | . . . . Repair Stations . | . . . . Recycling Units . | . . . . Scanalyzers . | . . . . Garrison Access . | . . . . Terminal Hacks 13 | . . . 13 Record 13 | . . . 13 Fabricator Hacks . | . . . . Repair Station Hacks . | . . . . Recycling Unit Hacks . | . . . . Scanalyzer . | . . . . Garrison Access Hacks . | . . . . Unauthorized Hacks . | . . . . Terminals . | . . . . Fabricators . | . . . . Repair Stations . | . . . . Recycling Units . | . . . . Scanalyzers . | . . . . Garrison Access . | . . . . Data Cores Recovered . | . . . . Used . | . . . . Hacking Detections . | . . . . Full Trace Events . | . . . . Feedback Events . | . . . . Feedback Blocked . | . . . . Robot Schematics Acquired . | . . . . Robots Built . | . . . . Authchips . | . . . . Time . | . . . . Total Robot Build Rating . | . . . . Part Schematics Acquired . | . . . . Parts Built . | . . . . Authchips . | . . . . Time . | . . . . Total Part Build Rating . | . . . . Parts Repaired . | . . . . Time . | . . . . Parts Recycled . | . . . . Recycled Matter . | . . . . Retrieved Matter . | . . . . Retrieved Components . | . . . . Parts Scanalyzed . | . . . . Part Schematics Acquired . | . . . . Parts Damaged . | . . . . Bothacking | -11 -10 -10 -9 ------------ Run | Yrd Mat Sub Scr Used RIF Installer . | . . . . Robots Hacked . | . . . . Non-combat . | . . . . Combat . | . . . . Robot Hacks Applied . | . . . . Relay Couplers Released . | . . . . Fabnet Peak Effective % . | . . . . Robots Rewired . | . . . . Allies Hacked . | . . . . Hacks Repelled . | . . . . Allies | -11 -10 -10 -9 -------- Run | Yrd Mat Sub Scr Total Allies . | . . . . Largest Group . | . . . . Highest-Rated Group . | . . . . Highest-Rated Ally . | . . . . Total Orders . | . . . . Ally Attacks . | . . . . Total Damage . | . . . . Kills . | . . . . Allies Corrupted . | . . . . Allies Melted . | . . . . Intel | -11 -10 -10 -9 ------- Run | Yrd Mat Sub Scr Active Infowar (turns) . | . . . . Robot Analysis Total . | . . . . Derelict Logs Recovered . | . . . . Drone Launches . | . . . . Drone Recoveries . | . . . . Exploration | -11 -10 -10 -9 ------------- Run | Yrd Mat Sub Scr Turns Passed 2342 | 63 678 216 1385 Spaces Moved 1521 | 41 468 113 899 Core 18 | 17 . . 1 Treads . | . . . . Legs 1503 | 24 468 113 898 Wheels . | . . . . Hover . | . . . . Flight . | . . . . Fastest Speed 50 | 50 120 190 120 Average Speed 146 | 108 133 190 150 Slowest Speed 260 | 120 190 190 260 Overloaded Moves . | . . . . Propulsion Burnouts . | . . . . Robots Hopped . | . . . . Potential Cave-ins . | . . . . Cave-ins Triggered . | . . . . Exploration Rate (%) 29 | 4 39 13 61 Regions Visited 3 Branch Regions 2 Pre-discovered Areas . | . . . . Known Exits Taken . | . . . . Unknown Exits Taken 3 | 1 1 1 . Scrap Searched 1 | . . . 1 Spaces Dug 1 | . . . 1 Terrain Destroyed 3 | . . . 3 Melee . | . . . . Projectile 3 | . . . 3 AOE . | . . . . Terrain Rammed . | . . . . Walls Destroyed . | . . . . Machines Disabled . | . . . . Actions | -11 -10 -10 -9 --------- Run | Yrd Mat Sub Scr Total 1603 | 58 498 115 932 Wait 21 | . 5 3 13 Move 1518 | 40 467 112 899 Hop . | . . . . Pick Up 26 | 10 8 . 8 Fast Attach . | . . . . Attach 9 | 6 1 . 2 Detach . | . . . . Swap 4 | 2 1 . 1 Drop 10 | . 3 . 7 Fire 15 | . 13 . 2 Melee . | . . . . Ram . | . . . . Kick . | . . . . Crush . | . . . . Escape Stasis . | . . . . Rewire . | . . . . Trap . | . . . . Miscellaneous . | . . . . Route ------- -11/Scrapyard -10/Materials (discovered 4 exits: [*Mat x2] / [*Min] / [*Sub]) -10/Subcaves -9/Scraptown (discovered 1 exit: [*Fac]) History --------- Turn | Location | Event 6 | -11/Scrapyard | Discovered new exit (range 14) 64 | -11/Scrapyard | Entered Materials 65 | -10/Materials | Met a group of wandering Federalists 108 | -10/Materials | Discovered new exit (range 7) 318 | -10/Materials | Build established: Mutant 319 | -10/Materials | Discovered new exit (range 15) 335 | -10/Materials | Discovered new exit (range 15) 369 | -10/Materials | Lost 3 allies 379 | -10/Materials | Discovered new exit (range 3) 742 | -10/Materials | Entered Subcaves 743 | -10/Subcaves | Continued accompanying wandering Federalists (1) 743 | -10/Subcaves | Approached by a straggling Scientist 945 | -10/Subcaves | Wandering Federalist uncovered a shortcut to Scraptown 958 | -10/Subcaves | Entered Scraptown 1167 | -9/Scraptown | Heard Great Nut preacher, LISTEN AND RECITE! 1670 | -9/Scraptown | Visited UFD Registry 1670 | -9/Scraptown | Registered with UFD as "Datasplitter" 1688 | -9/Scraptown | Visited Awakened 1789 | -9/Scraptown | Visited Modified Component R&D 1890 | -9/Scraptown | Visited LU-1G1's Boring Crew 2033 | -9/Scraptown | Visited Research Penetration Think Tank 2124 | -9/Scraptown | Found Scrap Suit 2203 | -9/Scraptown | Discovered new exit (range 3) 2271 | -9/Scraptown | Visited Cartography Club 2311 | -9/Scraptown | Attacked by Scraptown defenders 2340 | -9/Scraptown | Core integrity fell below 50% 2343 | -9/Scraptown | Core integrity fell below 20% 2343 | -9/Scraptown | Destroyed by RV-TI8(E) with Overtuned Barrage Gun Last Messages --------------- Acquired 36 matter. Bolt penetrates Wall. Penetrated by Bolt. Dropped Aluminum Leg. Acquired VSS Leg. Penetrated by Bolt. Bolt penetrates Wall. Bolt penetrates Machine. Machine disabled. Aluminum Leg destroyed. Critical hit (Burn: +50). Bolt penetrates Wall. Ion Engine destroyed. CW-PAE(c) suffers critical hit (Burn). Machine disabled. Aluminum Leg destroyed. Critical hit (Impale). Ovr. Coil Gun destroyed. Imp. Cryofiber Web destroyed. Penetrated by Bolt. Map ----- +----------------------------------------------------+ | ?????????????????????????????????????????????????? | | ?????????????????????????????????????????????????? | | ?????????????????????????????????????????????????? | | ?????????????????????????????????????????????????? | | ?????????????????????????????????#####???????????? | | ?????????????????????????????????#"""#???????????? | | ??###################???####?????#" "#???????????? | | ??"""##"""##""|##"""#??## ##????# < #???????????? | | ?#"" ##"" ##"" ## !"#### ###### ##??????????? | | ?#"" #??????????? | | ?# #??????????? | | ?####################### ###########??????????? | | #??????????????????????## ##????????????????????? | | ????????????????????????# #?????????????????????? | | ??###########???????????# #?????????????????????? | | ??# # # #???????????# #?????????##??????????? | | ### # """ # #???????????# #????????? #??????????? | | "## # "#" # #?########### #???????## #??????????? | | "## # """ # #?#""""""""## #?????### ???????????? | | "## #?#""""" ""## #?????# ###???????????? | | "## ####### #?#"" "## #?????#"# #####???????? | | X## # # #?#"" "##c #?????#*/ "#???????? | | ### # # #?#"" ## E#######%#######???????? | | "## # # #?#"" "##EE# = ! #????????? | | "## #?#" ## E# #????????? | | ####### #####?##### #####@ ## ####"######????????? | | ####### ########### ##### x## ##?###?????????????? | | """"""" """"""""""" """"j x" "#?????????????????? | | c hp "#?????????????????? | | "#?????????????????? | | g "#?????????????????? | | "#?????????????????? | | ???????????????? | | """"""""""""""""""""""""" z"## ??????????????? | | """"""""""""""""""""""""" "#?? ????????????? | | ##### ################"" c"#??? ???????????? | | ???? ??????????????#"" "#????#????????????? | | ???? ???????????????"" "#?????????????????? | | ????" "???????????????"" "#?????????????????? | | ? ""? ?????????????????" "#?????????????????? | | " ???????????????????" "??????????????????? | | "?????????????????? ??????????????????? | | "?????????????????? "??????????????????? | | " ???????????????????" "??????????????????? | | ""????????????????????? ????????????????????? | | ?? ??????????????????????????????????????????????? | | ?????????????????????????????????????????????????? | | ?????????????????????????????????????????????????? | | ?????????????????????????????????????????????????? | | "????????????????????????????????????????????????? | +----------------------------------------------------+ Best States ------------- Heat Dissipation 25 Energy Generation 10 Energy Capacity 250 Matter Stores 300 Matter Capacity 300 Sight Range 16 Terrain Scan Density 10 Base Temperature (-) 150 Evasion (%) 55 Item Schematics ----------------- None Robot Schematics ------------------ None Fabricated ------------ Nothing Repaired ---------- Nothing Alien Tech Used ----------------- None Achievements -------------- None Challenges ------------ None Game ------ Seed TerrorTransmissionDevice Manual? 0 Play Time 00:33:58 Cumulative 6.7 hours Start 2025.10.20 @ 05:30:54 End 2025.10.20 @ 06:08:32 Sessions 1 Manual Loads 0 Difficulty Rogue Special Mode None Game No. 8 Rogue 8 Adventurer 0 Explorer 0 Win Type - Total 0 Types 0/0/0/0/0/0/0/0/0/0 Lore% 6 Gallery% 10 Achievement% 10 Wizard Run 0 Options --------- Layout 2 ASCII 0 Keyboard 0 Movement Arrows Keybinds 0 Fullscreen 1 Font 16/SmallcapsGlow Map View 25x24 Zoom Use 99% Tactical HUD 0 Map Filters NONE Filters NONE Steam SD RUN: db209276-9c0f-453e-8111-6a5feeeeab08